bitfinex-derivatives/quotes_ETHF0:USTF0_20250807
["timestamp","ask_amount","ask_price","bid_price","bid_amount"]
[1754560825943,20.1149,3730.6,3730.5,2.22401]
[1754560826952,40.8,3730.8,3730.7,1.79969]
[1754560827152,59.196,3730.8,3730.7,5.43179]
[1754560827650,59.4909,3730.8,3730.7,5.43179]
[1754560828755,60.2255,3730.8,3730.7,2.40439]
[1754560829051,60.2255,3730.8,3730.7,2.94038]
[1754560829744,60.2255,3730.8,3730.7,0.81389]
[1754560829948,60.2255,3730.8,3730.7,0.53599]
[1754560830752,1.738,3730.5,3730.4,0.7276]
[1754560830952,20.128,3730.5,3730.4,0.2794]
[1754560831152,20.128,3730.5,3730.4,0.81543]
[1754560832044,0.3876,3730.3,3730.2,0.53606]
[1754560832348,20.1162,3730.3,3730.2,1.45216]
[1754560835253,18.9815,3730.3,3730.2,1.45216]
[1754560835546,18.389,3730.3,3730.2,1.58896]
[1754560835751,0.2931,3730.6,3730.5,0.81542]
[1754560836058,18.9765,3730.6,3730.5,1.58892]
[1754560836652,19.3641,3730.6,3730.5,1.58892]
[1754560836953,19.6563,3730.6,3730.5,1.45212]
[1754560837650,20.1112,3730.6,3730.5,1.45212]
[1754560838456,20.1112,3730.6,3730.5,0.53602]
[1754560838951,0.6798,3730.4,3730.3,0.53604]
[1754560839152,20.1092,3730.4,3730.3,0.53604]
[1754560839550,20.1092,3730.4,3730.3,1.45214]
[1754560840154,0.9801,3730.4,3730.3,1.59014]
[1754560840359,19.3631,3730.4,3730.3,1.59014]
[1754560840753,19.3631,3730.4,3730.3,1.45214]
[1754560840953,20.1102,3730.4,3730.3,1.45214]
[1754560841453,19.3631,3730.4,3730.3,1.45214]
[1754560841653,19.3631,3730.4,3730.3,1.59014]
[1754560842058,19.6553,3730.4,3730.3,1.45214]
[1754560842260,20.1102,3730.4,3730.3,1.45214]
[1754560843260,19.3631,3730.4,3730.3,1.45214]
[1754560843660,19.6553,3730.4,3730.3,1.45214]
[1754560844055,20.1102,3730.4,3730.3,1.45214]
[1754560845851,20.1102,3730.4,3730.3,1.26364]
[1754560846159,20.1102,3730.4,3730.3,0.53604]
[1754560849658,0.9801,3730.4,3730.3,1.00394]
[1754560849855,19.3531,3730.4,3730.3,1.45214]
[1754560850757,20.1002,3730.4,3730.3,1.45214]
[1754560852954,19.6453,3730.4,3730.3,1.45214]
[1754560854260,19.6453,3730.4,3730.3,0.98424]
[1754560854261,20.1002,3730.4,3730.3,0.98424]
[1754560854460,20.1002,3730.4,3730.3,0.53604]
[1754560855162,20.0922,3730.4,3730.3,1.45214]
[1754560857969,1.2723,3730.4,3730.3,1.45214]
[1754560858265,41.8474,3730.8,3730.7,1.45209]
[1754560858463,42.58188197,3730.8,3730.7,1.45209]
[1754560858664,60.94488197,3730.8,3730.7,1.45209]
[1754560858865,42.58188197,3730.8,3730.7,1.45209]
[1754560859067,60.94388197,3730.8,3730.7,1.45209]
[1754560859770,42.58188197,3730.8,3730.7,1.45209]
[1754560860267,60.94088197,3730.8,3730.7,1.45209]
[1754560860766,42.12698197,3730.8,3730.7,1.45209]
[1754560860963,0.2807,3731.1,3731.0,0.53595]
[1754560861162,0.7556,3731.2,3731.1,0.9154]
[1754560861369,41.5556,3731.2,3731.1,1.0533]
[1754560861758,40.8,3731.2,3731.1,1.0533]
[1754560861961,3.2078,3731.7,3731.6,0.2919]
[1754560862166,22.8125,3731.7,3731.6,1.45126]
[1754560862367,23.2706,3731.7,3731.6,0.53586]
[1754560862567,64.0706,3731.7,3731.6,0.53586]
[1754560862865,60.8628,3731.7,3731.6,0.53586]
[1754560863369,60.8628,3731.7,3731.6,0.96316]
[1754560864668,60.8628,3731.7,3731.6,0.53586]
[1754560864863,59.8347,3731.7,3731.5,0.53587]
[1754560865162,1.7008,3731.5,3731.4,0.53589]
[1754560865367,20.0608,3731.5,3731.4,0.82779]
[1754560865563,20.0608,3731.5,3731.4,1.25509]
[1754560865964,20.0608,3731.5,3731.4,1.45129]
[1754560866972,40.8,3731.7,3731.6,0.53586]
[1754560867165,59.8978,3731.7,3731.6,1.45126]
[1754560867567,60.1871,3731.7,3731.6,1.45126]
[1754560869269,41.37,3731.7,3731.6,1.45126]
[1754560869471,41.37,3731.7,3731.6,1.58916]
[1754560869963,59.73,3731.7,3731.6,1.45126]
[1754560870966,60.1881,3731.7,3731.6,1.45126]
[1754560872668,60.1881,3731.7,3731.6,0.53586]
[1754560873570,60.1881,3731.7,3731.6,0.82776]
[1754560873771,1.7008,3731.6,3731.5,0.53587]
[1754560873967,1.7008,3731.6,3731.5,1.25507]
[1754560874167,1.7008,3731.6,3731.5,1.45127]
[1754560875470,40.8,3731.7,3731.5,0.82777]
[1754560875670,59.15,3731.7,3731.6,0.7192]
[1754560875973,60.1781,3731.7,3731.6,0.9154]
[1754560876164,1.7008,3731.6,3731.5,0.53587]
[1754560876366,1.7008,3731.6,3731.5,0.82777]
[1754560876665,1.7008,3731.6,3731.5,1.45127]
[1754560877174,1.7008,3731.6,3731.5,1.25507]
[1754560878478,1.7008,3731.6,3731.5,1.45127]
[1754560878968,1.2427,3731.6,3731.5,1.45127]
[1754560879169,1.2427,3731.6,3731.5,1.58917]
[1754560879369,1.2427,3731.6,3731.5,1.45127]
[1754560879669,1.7008,3731.6,3731.5,1.45127]
[1754560882372,0.9536,3731.6,3731.5,1.45127]
[1754560882576,0.9536,3731.6,3731.5,1.58927]
[1754560882772,1.7008,3731.6,3731.5,1.45127]
[1754560882977,42.5008,3731.6,3731.5,1.45127]
[1754560885172,60.3827,3731.6,3731.5,1.45127]
[1754560886181,1.7008,3732.0,3731.9,1.45122]
[1754560886375,20.0408,3732.0,3731.9,1.45122]
[1754560886677,60.8408,3732.0,3731.9,1.45122]
[1754560887170,40.8,3732.0,3731.9,1.45122]
[1754560887375,41.0893,3732.0,3731.9,1.58922]
[1754560887576,41.37,3732.0,3731.9,1.58922]
[1754560888778,40.8,3732.0,3731.9,1.45122]
[1754560889073,40.8,3732.0,3731.9,1.58922]
[1754560889278,41.094,3732.0,3731.9,1.58922]
[1754560889580,0.294,3732.0,3731.9,1.58922]
[1754560889981,0.5991,3732.0,3731.9,1.58922]
[1754560890682,0.9818,3732.0,3731.9,1.45122]
[1754560890875,1.7081,3732.0,3731.9,1.45122]
[1754560892685,0.9818,3732.0,3731.9,1.45122]
[1754560892886,0.9818,3732.0,3731.9,1.58892]
[1754560893883,0.5991,3732.0,3731.9,1.58892]
[1754560894186,3.8877,3732.9,3732.8,1.02279]
[1754560894383,22.2257,3732.9,3732.8,1.48079]
[1754560894586,41.3991,3732.9,3732.8,1.48079]
[1754560894780,41.8282,3732.9,3732.8,1.48079]
[1754560895586,1.7081,3732.9,3732.8,1.48079]
[1754560899384,1.7081,3732.9,3732.8,4.68859]
[1754560899691,1.279,3733.4,3733.3,0.9451]
[1754560899882,1.7081,3733.4,3733.3,0.9451]
[1754560900288,42.5081,3733.4,3733.3,0.9451]
[1754560900985,42.5081,3733.4,3733.3,1.48072]
[1754560902580,42.5081,3733.4,3733.3,1.29292]
[1754560904087,60.8411,3733.4,3733.3,1.29292]
[1754560904287,60.8411,3733.4,3733.3,0.53562]
[1754560904784,0.5991,3733.3,3733.2,0.53563]
[1754560905090,1.7081,3732.9,3732.8,3.74349]
[1754560905281,20.0411,3732.9,3732.8,3.74349]
[1754560906392,0.5991,3733.3,3733.2,0.53562]
[1754560906685,20.0401,3733.3,3733.2,1.29292]
[1754560907592,20.0401,3733.3,3733.2,1.48072]
[1754560909494,1.7081,3733.3,3733.2,1.48072]
[1754560909788,20.0401,3733.3,3733.2,1.48072]
[1754560910185,20.0401,3733.3,3733.2,4.68852]
[1754560913288,20.0401,3733.3,3733.2,3.2078]
[1754560913590,20.0401,3733.3,3729.0,8.82]
[1754560913591,1.7081,3733.2,3733.1,0.53564]
[1754560913890,0.6799,3732.9,3732.8,3.74349]
[1754560914089,20.0471,3732.9,3732.8,3.74349]
[1754560914691,20.0471,3732.9,3732.8,4.04279]
[1754560914994,20.0471,3732.9,3732.8,4.68859]
[1754560915993,20.0471,3732.9,3732.8,4.50079]
[1754560916293,20.0471,3732.9,3732.8,3.2078]
[1754560917889,1.7081,3732.9,3732.8,3.6949]
[1754560918095,20.0431,3732.9,3732.8,4.1529]
[1754560918794,20.0431,3732.9,3732.8,3.9651]
[1754560919093,20.0431,3732.9,3732.8,3.2078]
[1754560919295,0.1981,3732.7,3732.6,0.53572]
[1754560919592,20.0913,3732.7,3732.6,0.53572]
[1754560920293,0.6968,3732.5,3732.4,3.2078]
[1754560920592,20.0913,3732.5,3732.4,3.74354]
[1754560920789,20.0913,3732.5,3732.4,0.53574]
[1754560921593,60.8913,3732.5,3732.4,0.53574]
[1754560921892,60.8913,3732.5,3732.4,1.47064]
[1754560922898,60.8913,3732.5,3732.4,0.53574]
[1754560923392,60.8913,3732.5,3732.4,0.83714]
[1754560923590,60.8913,3732.5,3732.4,1.47064]
[1754560923796,60.8883,3732.5,3732.4,1.47064]
[1754560924398,42.0954,3732.5,3732.4,1.26914]
[1754560924594,60.8893,3732.5,3732.4,1.47064]
[1754560924896,42.5563,3732.5,3732.4,1.47064]
[1754560925596,42.5563,3732.5,3732.4,0.83714]
[1754560926295,42.5563,3732.5,3732.4,1.26914]
[1754560926497,42.5563,3732.5,3732.4,0.83714]
[1754560926798,42.5563,3732.5,3732.4,0.53574]
[1754560927194,42.5563,3732.5,3732.2,3.2078]
[1754560927497,1.7563,3732.3,3732.2,3.74357]
[1754560929195,1.7563,3732.3,3732.2,4.47697]
[1754560930399,41.2609,3732.5,3732.4,0.9349]
[1754560930598,59.5949,3732.5,3732.4,0.7334]
[1754560930903,0.6968,3732.4,3732.3,0.53574]
[1754560931104,1.7563,3732.4,3732.3,0.96774]
[1754560932696,1.2954,3732.4,3732.3,1.47064]
[1754560933497,1.7563,3732.4,3732.3,1.47064]
[1754560934205,1.2954,3732.4,3732.3,1.47064]
[1754560935003,1.0973,3732.4,3732.3,1.47064]
[1754560935305,1.7563,3732.4,3732.3,1.47064]
[1754560935800,40.8,3732.5,3732.3,1.47064]
[1754560935999,1.2954,3732.4,3732.3,1.03864]
[1754560936195,1.7563,3732.4,3732.3,1.03864]
[1754560936594,1.7563,3732.4,3732.3,1.47064]
[1754560940302,1.2954,3732.4,3732.3,1.47064]
[1754560940508,40.8,3732.8,3732.7,0.5357]
[1754560940699,0.7895,3732.8,3732.7,4.6784]
[1754560941603,1.7563,3732.8,3732.7,3.945]
[1754560941807,20.0903,3732.8,3732.7,0.5357]
[1754560942202,19.0308,3732.8,3732.6,0.5357]
[1754560942404,1.7563,3732.7,3732.6,0.5357]
[1754560943112,0.1909,3732.5,3732.4,0.53574]
[1754560943312,20.0903,3732.5,3732.4,0.53574]
[1754560943713,60.8903,3732.5,3732.4,0.53574]
[1754560944212,60.8903,3732.5,3732.4,1.26914]
[1754560944809,60.8903,3732.5,3732.4,0.53574]
[1754560945010,59.8308,3732.5,3732.3,3.74355]
[1754560945310,1.7563,3732.4,3732.3,3.74355]
[1754560945906,1.7563,3732.4,3732.3,4.47695]
[1754560946111,1.7563,3732.4,3732.3,4.67845]
[1754560946414,1.7563,3732.4,3732.3,4.04495]
[1754560947311,1.7563,3732.4,3732.3,4.67845]
[1754560948511,1.7563,3732.4,3732.3,4.47695]
[1754560949410,1.7563,3732.4,3732.3,3.74355]
[1754560949610,1.7563,3732.4,3732.3,3.2078]
[1754560950107,0.9953,3732.4,3732.3,4.1152]
[1754560950314,1.7486,3732.4,3732.3,4.1152]
[1754560951606,59.134,3732.5,3732.4,0.53574]
[1754560951809,59.7207,3732.5,3732.4,1.44314]
[1754560952308,60.1705,3732.5,3732.4,1.44314]
[1754560952912,0.5867,3732.5,3732.4,1.44314]
[1754560953117,0.2791,3732.5,3732.4,1.58074]
[1754560953617,0.5867,3732.5,3732.4,1.58074]
[1754560955317,38.569,3733.8,3732.3,3.2078]
[1754560955523,0.73445842,3733.3,3733.2,0.1959]
[1754560955715,0.73445842,3733.4,3733.3,1.58061]
[1754560955923,20.0648,3733.6,3733.5,0.2853]
[1754560956217,1.0365,3733.5,3733.3,0.4262]
[1754560956416,18.83,3733.4,3733.3,1.2471]
[1754560956716,18.83,3733.4,3733.3,1.443]
[1754560956717,60.8648,3733.4,3733.3,1.443]
[1754560958518,60.8648,3733.4,3733.3,0.9074]
[1754560958816,60.8648,3733.4,3733.3,0.2853]
[1754560959715,60.8648,3733.4,3733.1,3.2078]
[1754560959920,1.7318,3733.2,3733.1,4.1152]
[1754560960120,20.0628,3733.2,3733.1,4.1152]
[1754560961620,19.613,3733.2,3733.1,4.1152]
[1754560961919,20.0628,3733.2,3733.1,4.1152]
[1754560962615,20.0628,3733.2,3733.1,3.4037]
[1754560962813,1.7318,3733.0,3732.9,1.44305]
[1754560963919,0.6953,3732.7,3732.6,3.2078]
[1754560964116,1.7318,3732.7,3732.6,3.9193]
[1754560964416,18.33,3733.0,3732.9,0.82095]
[1754560964610,19.7827,3733.2,3733.1,0.9074]
[1754560965122,20.0618,3733.2,3733.1,0.7115]
[1754560965321,0.96057008,3735.3,3733.7,0.1959]
[1754560965620,0.73264538,3735.2,3735.1,0.53533]
[1754560965825,0.73264538,3735.2,3735.1,3.74313]
[1754560966317,1.92114017,3738.7,3737.9,0.53492]
[1754560966516,17.46448122,3740.3,3738.5,3.2078]
[1754560966517,1.5398163,3739.0,3738.5,3.2078]
[1754560966712,1.0050363,3739.0,3738.5,3.2078]
[1754560966911,0.3076,3738.8,3738.5,3.2078]
[1754560967112,1.0050363,3739.0,3738.5,3.2078]
[1754560967425,1.0050363,3739.0,3738.9,3.2078]
[1754560967620,1.5917363,3739.0,3738.9,3.2078]
[1754560968013,1.0365,3738.7,3738.5,3.2078]
[1754560968321,0.2791,3738.6,3738.4,3.2078]
[1754560968917,1.0050363,3739.0,3738.4,3.2078]
[1754560969215,1.0050363,3739.0,3738.9,3.2078]
[1754560969612,0.5050363,3739.0,3738.9,3.2078]
[1754560970824,0.7841363,3739.0,3738.9,3.2078]
[1754560971020,1.5415363,3739.0,3738.9,3.2078]
[1754560971517,0.53495,3737.9,3737.8,3.2078]
[1754560971711,1.57145,3737.9,3737.8,3.2078]
[1754560971918,42.37145,3737.9,3737.8,3.2078]
[1754560973030,41.8365,3737.9,3737.4,3.2078]
[1754560973220,1.0365,3737.1,3737.0,0.01144]
[1754560974120,0.2791,3737.8,3737.0,0.67424]
[1754560974428,40.8,3737.9,3737.7,0.4262]
[1754560974627,0.3076,3738.4,3738.0,0.53492]
[1754560974820,1.33668,3739.8,3738.6,0.9675]
[1754560974821,0.2791,3739.5,3738.6,0.9675]
[1754560975021,0.53472,3739.4,3738.9,4.1753]
[1754560975226,3.2078,3739.8,3738.9,3.8706]
[1754560975227,0.2684363,3739.0,3738.9,3.8706]
[1754560975421,0.53464,3740.0,3739.0,0.53477]
[1754560975622,1.29206,3739.8,3739.7,3.2078]
[1754560975823,1.57116,3739.8,3739.7,3.2078]
[1754560976023,1.0365,3739.7,3739.2,3.2078]
[1754560976222,0.7289,3739.4,3739.2,3.2078]
[1754560976430,1.0365,3739.4,3739.3,0.1941]
[1754560976626,1.12142,3739.4,3739.3,0.1941]
[1754560976929,1.0365,3739.3,3739.2,3.2078]
[1754560977320,19.233,3740.4,3739.2,3.2078]
[1754560977321,40.22471526,3741.4,3740.8,0.53451]
[1754560977523,3.74199,3743.1,3742.0,0.53434]
[1754560977725,40.8,3743.0,3742.6,3.2078]
[1754560977923,3.2078,3743.9,3742.6,3.2078]
[1754560978122,1.0365,3744.3,3743.3,3.2078]
[1754560978329,0.2791,3744.0,3742.9,3.2078]
[1754560978525,0.4498,3743.6,3742.9,3.2078]
[1754560978828,0.5341,3743.7,3742.9,3.2078]
[1754560979018,0.3279,3743.4,3742.9,3.2078]
[1754560979220,0.53406,3744.0,3743.0,0.5342]
[1754560979530,1.0,3745.0,3742.9,3.2078]
[1754560979531,0.9742,3743.7,3742.9,3.2078]
[1754560979720,40.8,3743.6,3742.9,3.2078]
[1754560979919,0.67655375,3743.5,3743.4,3.2078]
[1754560980121,3.88435375,3744.9,3743.5,0.53413]
[1754560980320,0.3279,3744.6,3743.8,3.2078]
[1754560980519,0.53407,3744.0,3743.2,3.2078]
[1754560980730,1.00445375,3744.2,3743.2,3.2078]
[1754560980926,0.3279,3744.2,3743.6,3.74191]
[1754560981123,0.67655375,3744.4,3743.6,3.2078]
[1754560981330,0.67655375,3744.3,3744.0,3.2078]
[1754560981529,0.3279,3744.6,3744.0,3.2078]
[1754560981721,0.4401,3744.8,3744.0,3.2078]
[1754560981722,0.3279,3744.4,3744.1,0.53405]
[1754560981923,0.67655375,3744.4,3744.0,3.74186]
[1754560982433,1.92114017,3744.7,3744.2,0.53402]
[1754560982632,1.92114017,3744.8,3744.5,3.74178]
[1754560982832,1.92114017,3744.8,3744.5,3.2078]
[1754560983028,1.92114017,3744.8,3744.6,0.53398]
[1754560983226,2.92114017,3745.0,3744.5,3.74179]
[1754560983436,2.59769392,3744.9,3744.5,3.2078]
[1754560983633,1.92114017,3744.8,3744.5,3.2078]
[1754560983934,1.92114017,3744.9,3744.5,3.2078]
[1754560984134,3.59769392,3745.0,3744.5,3.2078]
[1754560984328,0.3279,3744.9,3744.5,3.2078]
[1754560984534,3.59769392,3745.0,3744.5,3.2078]
[1754560984728,3.45506017,3745.0,3744.5,3.2078]
[1754560984926,0.3279,3744.7,3744.5,3.2078]
[1754560985229,3.59769392,3745.0,3744.6,3.2078]
[1754560985432,0.22229357,3745.0,3744.7,0.53396]
[1754560985629,0.22229357,3745.0,3744.6,3.2078]
[1754560985630,0.67655375,3745.2,3745.1,0.53391]
[1754560985829,0.67655375,3745.5,3745.4,0.53386]
[1754560986130,0.3147154,3746.4,3746.2,0.53375]
[1754560986333,3.2078,3746.7,3745.9,3.2078]
[1754560986727,3.5357,3746.7,3745.9,3.2078]
[1754560986928,0.3279,3746.7,3746.3,3.2078]
[1754560987134,0.3378,3747.2,3746.3,3.2078]
[1754560987333,0.6657,3747.2,3746.8,3.64145]
[1754560987629,0.3279,3747.7,3746.8,3.1078]
[1754560987834,5.13075043,3748.4,3747.8,0.53351]
[1754560988036,4.80285043,3748.4,3747.8,0.53351]
[1754560988227,0.3279,3747.9,3747.3,3.2078]
[1754560988531,1.1058,3747.9,3747.3,3.2078]
[1754560988727,0.3378,3747.7,3747.3,3.2078]
[1754560988929,0.3279,3747.3,3746.7,3.2078]
[1754560989236,4.0463365,3747.9,3746.6,3.2078]
[1754560989533,0.3378,3747.6,3746.8,3.2078]
[1754560989733,1.40396369,3746.9,3746.8,3.74146]
[1754560990132,1.40396369,3746.9,3746.8,3.2078]
[1754560990133,3.7184365,3746.9,3746.8,3.2078]
[1754560990330,4.3841365,3746.9,3746.8,3.2078]
[1754560990534,0.53368,3746.7,3746.4,3.2078]
[1754560990824,0.53368,3746.7,3744.4,1.335]
[1754560990825,1.1058,3746.4,3745.5,3.2078]
[1754560991029,0.3279,3746.3,3745.5,3.74165]
[1754560991331,1.1058,3745.6,3744.9,3.2078]
[1754560991734,0.3279,3745.4,3745.0,0.53392]
[1754560991934,1.1058,3745.2,3744.9,3.2078]
[1754560992231,0.3279,3744.9,3744.4,3.7418]
[1754560992436,1.1058,3744.7,3744.5,0.53399]
[1754560992633,0.3378,3745.0,3744.5,1.33499]
[1754560992936,0.31189,3745.0,3744.9,3.74173]
[1754560993333,44.8303265,3745.0,3744.9,3.74173]
[1754560993532,0.53394,3744.9,3744.4,3.2078]
[1754560993831,0.7779,3744.5,3744.4,3.2078]
[1754560994027,0.3378,3744.2,3743.8,3.2078]
[1754560994329,0.4401,3743.7,3743.4,3.2078]
[1754560994529,0.4401,3743.3,3742.3,3.2078]
[1754560994735,0.7779,3743.0,3742.7,0.53425]
[1754560995028,1.1058,3742.8,3742.3,3.2078]
[1754560995228,1.1058,3742.7,3742.6,0.53425]
[1754560995633,1.1058,3742.7,3742.3,3.2078]
[1754560995634,4.1585365,3742.7,3742.3,3.2078]
[1754560995832,0.53429,3742.5,3741.9,0.96206523]
[1754560996032,1.1058,3742.1,3741.9,1.49642523]
[1754560996238,1.1058,3742.0,3741.9,1.49642523]
[1754560996538,1.1058,3742.0,3741.9,0.96206523]
[1754560996736,4.8242365,3742.0,3741.9,0.96206523]
[1754560997539,8.0320365,3742.0,3741.9,0.96206523]
[1754560997838,8.0320365,3742.0,3740.7,0.7897]
[1754560997839,3.7184365,3741.9,3740.4,3.2078]
[1754560998138,3.5456,3741.1,3740.6,0.53455]
[1754560998435,0.3378,3740.9,3740.0,3.2078]
[1754560998641,0.3279,3740.8,3740.0,3.2078]
[1754560998831,0.3378,3740.7,3740.0,3.2078]
[1754560999032,0.3279,3740.6,3740.0,3.2078]
[1754560999233,0.3378,3740.1,3739.9,1.8534478]
[1754560999436,3.2078,3740.2,3739.8,0.53466]
[1754560999635,0.4401,3743.7,3740.1,5.07937359]
[1754560999836,0.3279,3744.6,3743.6,3.2078]
[1754561000034,0.4401,3744.9,3744.3,0.53401]
[1754561000229,3.2078,3744.6,3743.8,3.2078]
[1754561000434,0.7779,3744.5,3744.2,0.53402]
[1754561000633,4.02731247,3744.9,3743.6,1.33528]
[1754561000634,4.46741247,3744.9,3744.8,0.53395]
[1754561000830,1.0,3745.0,3744.8,0.86635]
[1754561001038,1.0,3745.0,3744.9,0.3324]
[1754561001439,1.0,3745.0,3744.9,0.6597]
[1754561001632,0.37685,3745.0,3744.9,1.117]
[1754561001838,1e-05,3745.0,3744.9,1.117]
[1754561002039,0.7779,3746.0,3745.9,0.53379]
[1754561002239,41.5779,3746.0,3745.9,3.74159]
[1754561002437,41.5779,3746.0,3745.9,3.2078]
[1754561002637,0.7779,3745.9,3745.4,3.2078]
[1754561002838,0.53382,3745.7,3745.4,3.2078]
[1754561003140,0.7779,3745.5,3745.4,3.2078]
[1754561003637,0.3378,3745.5,3745.4,2.7459]
[1754561003942,41.5171,3745.5,3745.4,1.6452]
[1754561004144,0.53389,3745.3,3745.0,3.2078]
[1754561004536,40.8,3745.5,3745.0,3.2078]
[1754561004730,40.8,3745.5,3745.2,0.3324]
[1754561004938,0.53387,3745.4,3745.2,0.6597]
[1754561005140,0.64586,3745.4,3745.3,0.3324]
[1754561005443,1.58961584,3745.4,3745.3,0.6597]
[1754561005640,1.58961584,3745.4,3745.3,0.3324]
[1754561005842,0.53388,3745.3,3745.0,3.5402]
[1754561006043,0.53391,3745.1,3745.0,3.5402]
[1754561006242,1.17977,3745.1,3745.0,3.5402]
[1754561006639,1.17977,3745.1,3745.0,3.2078]
[1754561007439,1.17977,3745.1,3744.1,0.3273]
[1754561007440,3.85366,3745.1,3744.2,0.3273]
[1754561007640,1.90121642,3744.5,3744.3,1.117]
[1754561007940,0.64586,3744.4,3744.3,1.117]
[1754561008140,0.37641247,3744.4,3744.3,1.65102]
[1754561008341,0.37641247,3744.4,3744.3,1.31862]
[1754561008838,0.3279,3745.4,3744.1,3.2078]
[1754561009044,0.3279,3745.2,3745.1,3.2078]
[1754561009239,0.4574,3745.4,3745.2,0.2368]
[1754561009440,40.8,3745.5,3745.3,0.2368]
[1754561009639,40.8,3745.5,3745.1,3.9788]
[1754561009840,40.8,3745.5,3745.3,0.2368]
[1754561010042,40.8,3745.5,3745.1,3.2078]
[1754561010043,0.4574,3745.4,3745.2,0.2368]
[1754561010545,1.88859,3745.2,3745.1,3.2078]
[1754561010741,0.4574,3744.7,3744.3,3.74182]
[1754561010941,0.9147,3744.5,3744.3,3.2078]
[1754561011150,0.4573,3744.5,3744.3,3.2078]
[1754561011342,0.4574,3744.4,3744.3,3.2078]
[1754561011744,1.88871,3744.4,3744.3,3.2078]
[1754561012349,0.4573,3744.9,3744.3,3.2078]
[1754561012648,0.9147,3744.9,3744.3,3.4446]
[1754561012845,0.4573,3744.9,3744.7,3.2078]
[1754561013046,40.8,3745.6,3744.9,0.4739]
[1754561013246,0.4574,3745.5,3745.3,0.2368]
[1754561013447,0.4574,3745.4,3745.2,3.2078]
[1754561013642,40.8,3745.6,3745.5,0.53385]
[1754561013846,0.4574,3745.5,3745.2,3.4446]
[1754561014040,3.2078,3746.1,3745.2,3.4446]
[1754561014041,3.86324919,3748.0,3745.2,3.2078]
[1754561014449,1.3307,3756.6,3750.0,0.25]
[1754561014649,4.75549381,3754.4,3753.3,0.53274]
[1754561014951,6.18214196,3755.9,3754.3,0.18]
[1754561015252,0.53201,3758.5,3755.7,3.2078]
[1754561015451,0.53199,3758.7,3756.9,3.2078]
[1754561015654,0.899,3758.9,3758.2,3.2078]
[1754561015956,3.2078,3758.8,3758.6,3.2078]
[1754561016148,0.899,3759.8,3758.6,3.2078]
[1754561016349,1.0,3760.0,3759.7,1.3008]
[1754561017653,1.3547,3759.8,3757.0,6.07239852]
[1754561017856,0.8974,3759.8,3759.7,2.2494]
[1754561018045,0.8974,3759.9,3759.2,3.2078]
[1754561018351,3.4078,3760.7,3758.9,3.2078]
[1754561018556,0.1111,3760.2,3759.7,3.2078]
[1754561018749,0.53184,3759.7,3758.9,3.2078]
[1754561018953,3.2078,3760.2,3759.6,4.17533]
[1754561019151,3.2078,3759.2,3758.0,0.4357]
[1754561019452,8.78e-06,3761.4,3761.3,0.53161]
[1754561019656,4.2078,3763.0,3762.5,0.53143]
[1754561019848,40.8,3762.6,3761.6,3.2078]
[1754561020050,3.2078,3762.3,3761.3,3.2078]
[1754561020250,3.2078,3762.3,3761.4,3.2078]
[1754561020458,3.2078,3761.8,3760.9,3.2078]
[1754561020758,0.899,3761.7,3761.6,2.1149]
[1754561020955,0.899,3762.6,3762.1,2.1149]
[1754561021157,0.899,3762.8,3762.0,7.24016744]
[1754561021347,0.899,3762.8,3762.1,0.95755862]
[1754561021549,0.53141,3762.7,3762.2,0.05755862]
[1754561021752,3.2078,3762.4,3761.5,0.53158]
[1754561021959,0.899,3762.3,3762.2,9.12074269]
[1754561022256,0.46267981,3763.0,3762.8,0.5314]
[1754561022459,2.65324,3768.2,3762.2,12.32854269]
[1754561022460,3.2078,3764.6,3763.0,0.9365]
[1754561022750,3.2078,3764.5,3763.5,2.83909]
[1754561022953,3.2078,3765.4,3764.0,9.0901038]
[1754561023162,0.43303584,3766.0,3764.9,3.2078]
[1754561023355,0.43303584,3766.0,3765.0,3.12328]
[1754561023552,3.2078,3765.9,3765.0,1.00839]
[1754561023752,0.43303584,3766.0,3765.6,0.4773]
[1754561023954,0.43303584,3766.0,3765.3,3.14520502]
[1754561024160,3.2078,3766.4,3765.6,2.23500007]
[1754561024458,3.2078,3767.5,3766.7,0.53085]
[1754561024759,3.2078,3768.3,3767.3,2.26519318]
[1754561025061,8.58e-06,3768.0,3767.9,4.58]
[1754561025259,0.2,3770.9,3770.8,0.53027]
[1754561025461,0.2,3770.9,3770.8,3.2078]
[1754561025666,0.2,3770.9,3769.1,1.32629]
[1754561025667,3.8478,3770.9,3769.8,3.73821]
[1754561025952,0.1920426,3770.9,3770.4,3.2078]
[1754561026154,0.1920426,3770.9,3770.8,4.58]
[1754561026358,0.8973,3772.9,3770.9,0.4773]
[1754561026558,3.2078,3771.3,3770.3,3.2078]
[1754561026756,1.3547,3770.9,3769.8,3.2078]
[1754561026957,1.3547,3771.6,3770.6,3.2078]
[1754561027150,0.0003,3772.0,3771.5,3.2078]
[1754561027353,0.0003,3772.0,3771.9,3.2078]
[1754561027558,40.8003,3772.0,3771.9,3.2078]
[1754561027753,40.8,3772.0,3771.9,3.2078]
[1754561027952,3.2078,3774.4,3771.9,3.2078]
[1754561028153,0.4574,3774.1,3772.5,3.2078]
[1754561028357,0.4574,3774.5,3774.0,3.2078]
[1754561028551,0.19525896,3774.6,3773.9,3.2078]
[1754561028956,40.8,3774.0,3773.9,3.2078]
[1754561029355,0.19525896,3774.6,3773.9,3.2078]
[1754561029557,0.19525896,3774.6,3773.9,3.73764]